[Event "Late-Titled-Tuesday-Blitz-August-29-2023"]
[Site "Chess.com"]
[Date "2023.08.29"]
[Round "2"]
[White "viktorgen2021"]
[Black "protectiago"]
[Result "1-0"]
[WhiteElo "2440"]
[BlackElo "2104"]
[TimeControl "180+1"]
[EndTime "14:17:27 PDT"]
[Termination "viktorgen2021 won on time"]

1. Nf3 {[%clk 0:02:51.4]} 1... Nf6 {[%clk 0:02:58.4]} 2. g3 {[%clk 0:02:48.3]}
2... g6 {[%clk 0:02:57.9]} 3. Bg2 {[%clk 0:02:49.2]} 3... Bg7 {[%clk 0:02:57.3]}
4. O-O {[%clk 0:02:49.9]} 4... O-O {[%clk 0:02:53.4]} 5. c4 {[%clk 0:02:50.8]}
5... d6 {[%clk 0:02:48.9]} 6. Nc3 {[%clk 0:02:51]} 6... e5 {[%clk 0:02:39.3]} 7.
d3 {[%clk 0:02:50.5]} 7... Nc6 {[%clk 0:02:32.5]} 8. Rb1 {[%clk 0:02:40.5]} 8...
Bg4 {[%clk 0:02:29.5]} 9. Ne1 {[%clk 0:02:36.7]} 9... Qd7 {[%clk 0:02:29.1]} 10.
b4 {[%clk 0:02:34.8]} 10... Rae8 {[%clk 0:02:19]} 11. Nc2 {[%clk 0:02:32.9]}
11... Bh3 {[%clk 0:01:37.9]} 12. b5 {[%clk 0:02:26]} 12... Nd8 {[%clk
0:01:35.2]} 13. a4 {[%clk 0:02:22.3]} 13... Bxg2 {[%clk 0:00:58.3]} 14. Kxg2
{[%clk 0:02:23.2]} 14... Ne6 {[%clk 0:00:57.2]} 15. Be3 {[%clk 0:02:20.6]} 15...
b6 {[%clk 0:00:31.1]} 16. a5 {[%clk 0:02:18.3]} 16... h6 {[%clk 0:00:13.5]} 17.
axb6 {[%clk 0:02:17.3]} 17... axb6 {[%clk 0:00:13]} 18. Ra1 {[%clk 0:02:12.7]}
18... Ng4 {[%clk 0:00:11.1]} 19. Bd2 {[%clk 0:02:11.7]} 19... Nc5 {[%clk
0:00:10.4]} 20. Ra7 {[%clk 0:02:10.3]} 20... Nb3 {[%clk 0:00:08.6]} 21. Nd5
{[%clk 0:02:08.4]} 21... Nc5 {[%clk 0:00:08.8]} 22. Rxc7 {[%clk 0:02:08]} 22...
Qf5 {[%clk 0:00:09]} 23. h3 {[%clk 0:01:58]} 23... Nf6 {[%clk 0:00:07.3]} 24.
Nce3 {[%clk 0:01:56.6]} 24... Qe6 {[%clk 0:00:06.2]} 25. Nxf6+ {[%clk
0:01:56.9]} 25... Bxf6 {[%clk 0:00:05.4]} 26. Ng4 {[%clk 0:01:53.5]} 26... Bg7
{[%clk 0:00:05.4]} 27. Bxh6 {[%clk 0:01:51.5]} 27... Rc8 {[%clk 0:00:04.4]} 28.
Rxc8 {[%clk 0:01:48.9]} 28... Rxc8 {[%clk 0:00:03.9]} 29. Bxg7 {[%clk
0:01:49.5]} 29... Kxg7 {[%clk 0:00:04.6]} 30. Qd2 {[%clk 0:01:50.3]} 30... Rh8
{[%clk 0:00:01.9]} 31. Rh1 {[%clk 0:01:46.5]} 31... f5 {[%clk 0:00:02.7]} 32.
Ne3 {[%clk 0:01:45.3]} 32... e4 {[%clk 0:00:03.2]} 33. Nd5 {[%clk 0:01:44.8]}
33... exd3 {[%clk 0:00:03.1]} 34. exd3 {[%clk 0:01:44.7]} 34... Re8 {[%clk
0:00:03.1]} 35. Ne3 {[%clk 0:01:37.7]} 35... Nd7 {[%clk 0:00:02.9]} 36. Re1
{[%clk 0:01:37.5]} 36... Nf6 {[%clk 0:00:03.2]} 37. Nc2 {[%clk 0:01:36.2]} 37...
Qd7 {[%clk 0:00:03.6]} 38. Rxe8 {[%clk 0:01:36.2]} 38... Qxe8 {[%clk 0:00:03.8]}
39. Qe3 {[%clk 0:01:35.6]} 39... Qa8+ {[%clk 0:00:04.7]} 40. Qf3 {[%clk
0:01:32.8]} 40... Qa2 {[%clk 0:00:04.8]} 41. Nd4 {[%clk 0:01:32.5]} 41... Qb2
{[%clk 0:00:04.4]} 42. Ne6+ {[%clk 0:01:32.1]} 42... Kf7 {[%clk 0:00:04.5]} 43.
Ng5+ {[%clk 0:01:31.9]} 43... Kg7 {[%clk 0:00:04.2]} 44. Qb7+ {[%clk 0:01:31.7]}
44... Nd7 {[%clk 0:00:03.9]} 45. Qxd7+ {[%clk 0:01:31.2]} 1-0

[Event "Late-Titled-Tuesday-Blitz-August-29-2023"]
[Site "Chess.com"]
[Date "2023.08.29"]
[Round "2"]
[White "sorch29"]
[Black "WildBizon"]
[Result "0-1"]
[WhiteElo "2403"]
[BlackElo "2730"]
[TimeControl "180+1"]
[EndTime "14:17:29 PDT"]
[Termination "WildBizon won by resignation"]

1. c4 {[%clk 0:03:00.9]} 1... b6 {[%clk 0:02:57.3]} 2. Nf3 {[%clk 0:02:56.9]}
2... Bb7 {[%clk 0:02:57.4]} 3. g3 {[%clk 0:02:57.1]} 3... Nf6 {[%clk 0:02:57.6]}
4. Bg2 {[%clk 0:02:56.7]} 4... g6 {[%clk 0:02:58.1]} 5. O-O {[%clk 0:02:56.2]}
5... Bg7 {[%clk 0:02:58.6]} 6. d4 {[%clk 0:02:55.9]} 6... O-O {[%clk 0:02:58.9]}
7. Re1 {[%clk 0:02:46.7]} 7... e6 {[%clk 0:02:56.7]} 8. Nc3 {[%clk 0:02:45.1]}
8... Ne4 {[%clk 0:02:55]} 9. Bd2 {[%clk 0:02:42.3]} 9... c5 {[%clk 0:02:52.6]}
10. d5 {[%clk 0:02:31]} 10... exd5 {[%clk 0:02:41.5]} 11. cxd5 {[%clk
0:02:31.1]} 11... Nxd2 {[%clk 0:02:23.1]} 12. Qxd2 {[%clk 0:02:26.4]} 12... d6
{[%clk 0:02:23.5]} 13. e4 {[%clk 0:02:13.5]} 13... Re8 {[%clk 0:02:22.3]} 14.
Bf1 {[%clk 0:02:01.5]} 14... Na6 {[%clk 0:02:19.4]} 15. Bb5 {[%clk 0:01:44.5]}
15... Re7 {[%clk 0:02:17.9]} 16. Rad1 {[%clk 0:01:32]} 16... h6 {[%clk 0:01:50]}
17. Bc6 {[%clk 0:01:29.4]} 17... Bxc6 {[%clk 0:01:23.7]} 18. dxc6 {[%clk
0:01:29.5]} 18... Rc8 {[%clk 0:01:24]} 19. Nd5 {[%clk 0:01:07.6]} 19... Re8
{[%clk 0:01:21.9]} 20. Qe2 {[%clk 0:00:37.9]} 20... Nc7 {[%clk 0:01:19.4]} 21.
Nxc7 {[%clk 0:00:19.8]} 21... Qxc7 {[%clk 0:01:18.1]} 22. Qd2 {[%clk 0:00:06.4]}
22... Qxc6 {[%clk 0:01:16.5]} 23. Qxd6 {[%clk 0:00:06]} 23... Qxd6 {[%clk
0:01:16.3]} 24. Rxd6 {[%clk 0:00:06.6]} 24... Bxb2 {[%clk 0:01:14.7]} 25. Re2
{[%clk 0:00:06.6]} 25... Bg7 {[%clk 0:01:05.5]} 26. Rd7 {[%clk 0:00:06.7]} 26...
c4 {[%clk 0:01:05.6]} 27. e5 {[%clk 0:00:04.2]} 27... c3 {[%clk 0:01:03.2]} 28.
Rd1 {[%clk 0:00:03]} 28... b5 {[%clk 0:01:00.8]} 29. Rc1 {[%clk 0:00:03]} 29...
b4 {[%clk 0:01:00.5]} 30. Re4 {[%clk 0:00:03.7]} 30... a5 {[%clk 0:01:00.7]} 31.
Rd4 {[%clk 0:00:03.4]} 31... Bxe5 {[%clk 0:01:00]} 32. Rd5 {[%clk 0:00:03.9]}
32... Bf6 {[%clk 0:00:58.4]} 33. Rxa5 {[%clk 0:00:03.3]} 33... c2 {[%clk
0:00:58.8]} 34. Rb5 {[%clk 0:00:02.3]} 34... Bb2 {[%clk 0:00:58.3]} 35. Rxc2
{[%clk 0:00:02.8]} 35... Rxc2 {[%clk 0:00:58.4]} 36. Rxb4 {[%clk 0:00:03.7]}
36... Bf6 {[%clk 0:00:56.9]} 37. Kg2 {[%clk 0:00:04.6]} 37... Ree2 {[%clk
0:00:56.6]} 0-1

[Event "Late-Titled-Tuesday-Blitz-August-29-2023"]
[Site "Chess.com"]
[Date "2023.08.29"]
[Round "2"]
[White "aqibjbutt"]
[Black "Petukhov_Dmitry"]
[Result "0-1"]
[WhiteElo "1991"]
[BlackElo "2526"]
[TimeControl "180+1"]
[EndTime "14:17:39 PDT"]
[Termination "Petukhov_Dmitry won by checkmate"]

1. d4 {[%clk 0:03:00]} 1... Nf6 {[%clk 0:02:57.5]} 2. g3 {[%clk 0:02:59.8]} 2...
g6 {[%clk 0:02:55.6]} 3. Bg2 {[%clk 0:03:00]} 3... Bg7 {[%clk 0:02:55.9]} 4. c4
{[%clk 0:02:59.7]} 4... O-O {[%clk 0:02:55.3]} 5. Nc3 {[%clk 0:02:59.6]} 5... c6
{[%clk 0:02:55.9]} 6. Nh3 {[%clk 0:02:58.5]} 6... d5 {[%clk 0:02:51.8]} 7. cxd5
{[%clk 0:02:52.6]} 7... cxd5 {[%clk 0:02:49.4]} 8. Nf4 {[%clk 0:02:52.4]} 8...
e6 {[%clk 0:02:45.2]} 9. O-O {[%clk 0:02:51.8]} 9... Nc6 {[%clk 0:02:45.1]} 10.
e3 {[%clk 0:02:41.1]} 10... Bd7 {[%clk 0:02:42.7]} 11. b3 {[%clk 0:02:41]} 11...
Rc8 {[%clk 0:02:41.6]} 12. Ba3 {[%clk 0:02:34]} 12... Re8 {[%clk 0:02:41]} 13.
Nb5 {[%clk 0:02:34]} 13... Qa5 {[%clk 0:02:25.8]} 14. Nd6 {[%clk 0:01:22]} 14...
Qxa3 {[%clk 0:02:24.1]} 15. Nxe8 {[%clk 0:01:21.6]} 15... Nxe8 {[%clk
0:02:17.6]} 16. Qc1 {[%clk 0:01:17.3]} 16... Qxc1 {[%clk 0:02:12.3]} 17. Raxc1
{[%clk 0:01:18.2]} 17... Nd6 {[%clk 0:02:12.6]} 18. Nd3 {[%clk 0:01:17.3]} 18...
b6 {[%clk 0:02:10.1]} 19. Rc2 {[%clk 0:01:14.7]} 19... Ne7 {[%clk 0:02:06.5]}
20. Rfc1 {[%clk 0:01:14.7]} 20... Rxc2 {[%clk 0:01:54.4]} 21. Rxc2 {[%clk
0:01:15.6]} 21... Ne8 {[%clk 0:01:49.8]} 22. Ne5 {[%clk 0:01:06.4]} 22... Bxe5
{[%clk 0:01:31.2]} 23. dxe5 {[%clk 0:01:07.3]} 23... Nc6 {[%clk 0:01:18.2]} 24.
f4 {[%clk 0:01:03.2]} 24... f6 {[%clk 0:01:12.1]} 25. exf6 {[%clk 0:01:01.9]}
25... Nxf6 {[%clk 0:01:07.3]} 26. e4 {[%clk 0:01:01.1]} 26... Nxe4 {[%clk
0:01:05.7]} 27. Bxe4 {[%clk 0:01:00.9]} 27... dxe4 {[%clk 0:01:05.3]} 28. Kf2
{[%clk 0:01:01.4]} 28... Kf7 {[%clk 0:00:57.4]} 29. Ke3 {[%clk 0:01:01.2]} 29...
Ke7 {[%clk 0:00:57]} 30. Kxe4 {[%clk 0:01:01.1]} 30... Kd6 {[%clk 0:00:55.1]}
31. Rd2+ {[%clk 0:00:59.8]} 31... Ke7 {[%clk 0:00:51.9]} 32. h4 {[%clk 0:00:57]}
32... Nb4 {[%clk 0:00:47.9]} 33. g4 {[%clk 0:00:47.6]} 33... Bc6+ {[%clk
0:00:34.4]} 34. Ke5 {[%clk 0:00:46]} 34... Bf3 {[%clk 0:00:29.3]} 35. Rd4 {[%clk
0:00:30.6]} 35... Nc6# {[%clk 0:00:27.5]} 0-1

[Event "Late-Titled-Tuesday-Blitz-August-29-2023"]
[Site "Chess.com"]
[Date "2023.08.29"]
[Round "2"]
[White "cthulhuuu"]
[Black "MBA_CHESS_2021"]
[Result "1-0"]
[WhiteElo "2481"]
[BlackElo "2274"]
[TimeControl "180+1"]
[EndTime "14:17:39 PDT"]
[Termination "cthulhuuu won by resignation"]

1. e4 {[%clk 0:02:54.5]} 1... e5 {[%clk 0:02:59.6]} 2. Nf3 {[%clk 0:02:54.7]}
2... Nc6 {[%clk 0:02:59.6]} 3. Bb5 {[%clk 0:02:55.4]} 3... a6 {[%clk 0:02:58.7]}
4. Bxc6 {[%clk 0:02:55.6]} 4... dxc6 {[%clk 0:02:58.5]} 5. O-O {[%clk
0:02:56.5]} 5... Bg4 {[%clk 0:02:56]} 6. h3 {[%clk 0:02:57]} 6... Bh5 {[%clk
0:02:53.5]} 7. g4 {[%clk 0:02:56.8]} 7... Bg6 {[%clk 0:02:53.5]} 8. Nxe5 {[%clk
0:02:56.8]} 8... Bc5 {[%clk 0:02:49.1]} 9. c3 {[%clk 0:02:45]} 9... f6 {[%clk
0:02:49]} 10. Nxg6 {[%clk 0:02:43.7]} 10... hxg6 {[%clk 0:02:48.8]} 11. d4
{[%clk 0:02:40.9]} 11... Bd6 {[%clk 0:02:25.4]} 12. Kg2 {[%clk 0:02:40.3]} 12...
g5 {[%clk 0:02:23.3]} 13. e5 {[%clk 0:02:22.4]} 13... fxe5 {[%clk 0:02:18.9]}
14. dxe5 {[%clk 0:02:22.2]} 14... Bxe5 {[%clk 0:02:15.2]} 15. Qxd8+ {[%clk
0:02:21.7]} 15... Kxd8 {[%clk 0:02:08.3]} 16. Bxg5+ {[%clk 0:02:21.6]} 16... Bf6
{[%clk 0:01:55.2]} 17. Bf4 {[%clk 0:02:21.3]} 17... Ne7 {[%clk 0:01:51.9]} 18.
Nd2 {[%clk 0:02:18.7]} 18... Ng6 {[%clk 0:01:49.1]} 19. Bg3 {[%clk 0:02:18.6]}
19... Nh4+ {[%clk 0:01:45.4]} 20. Bxh4 {[%clk 0:02:15.3]} 20... Rxh4 {[%clk
0:01:45.1]} 21. Nf3 {[%clk 0:02:09.8]} 21... Rh8 {[%clk 0:01:44.1]} 22. Rad1+
{[%clk 0:02:09.5]} 22... Kc8 {[%clk 0:01:43.1]} 23. Rfe1 {[%clk 0:02:03.1]}
23... b6 {[%clk 0:01:42.1]} 24. g5 {[%clk 0:01:34.9]} 24... Bd8 {[%clk
0:01:39.4]} 25. h4 {[%clk 0:01:35.4]} 25... a5 {[%clk 0:01:12.3]} 26. Kg3 {[%clk
0:01:35.1]} 26... c5 {[%clk 0:01:07.4]} 27. Ne5 {[%clk 0:01:34.6]} 27... c6
{[%clk 0:01:05.2]} 28. Nxc6 {[%clk 0:01:28.1]} 28... Bc7+ {[%clk 0:01:05.4]} 29.
Kg4 {[%clk 0:01:28.5]} 29... Kb7 {[%clk 0:01:04.5]} 30. Ne5 {[%clk 0:01:21.2]}
30... Rhf8 {[%clk 0:00:51.6]} 31. f4 {[%clk 0:01:19.8]} 31... Rad8 {[%clk
0:00:36.2]} 32. h5 {[%clk 0:01:15]} 32... a4 {[%clk 0:00:18.2]} 33. Rxd8 {[%clk
0:01:05.7]} 33... Rxd8 {[%clk 0:00:17.1]} 34. h6 {[%clk 0:01:05.5]} 34... gxh6
{[%clk 0:00:16.8]} 35. gxh6 {[%clk 0:01:06.2]} 35... Rg8+ {[%clk 0:00:16.2]} 36.
Kf5 {[%clk 0:01:06.2]} 36... Rg2 {[%clk 0:00:11.6]} 37. Rh1 {[%clk 0:01:04.2]}
37... Bxe5 {[%clk 0:00:10.7]} 38. fxe5 {[%clk 0:01:03.1]} 38... Rf2+ {[%clk
0:00:10.6]} 39. Ke6 {[%clk 0:01:02.5]} 39... Rf8 {[%clk 0:00:09.6]} 40. h7
{[%clk 0:01:02.5]} 40... Rh8 {[%clk 0:00:09.9]} 41. Kf7 {[%clk 0:01:02.9]} 41...
a3 {[%clk 0:00:09.4]} 42. bxa3 {[%clk 0:01:02.1]} 42... Kc6 {[%clk 0:00:09.5]}
43. Kg7 {[%clk 0:01:01.2]} 43... Rc8 {[%clk 0:00:10]} 44. h8=Q {[%clk
0:00:59.9]} 44... Rxh8 {[%clk 0:00:10.7]} 45. Rxh8 {[%clk 0:00:59.3]} 45... Kd5
{[%clk 0:00:11.6]} 46. Kf6 {[%clk 0:00:58.1]} 46... Kc4 {[%clk 0:00:11.5]} 47.
e6 {[%clk 0:00:58.2]} 1-0

[Event "Late-Titled-Tuesday-Blitz-August-29-2023"]
[Site "Chess.com"]
[Date "2023.08.29"]
[Round "2"]
[White "AnkitGajwa"]
[Black "burbur555"]
[Result "0-1"]
[WhiteElo "2383"]
[BlackElo "2549"]
[TimeControl "180+1"]
[EndTime "14:17:40 PDT"]
[Termination "burbur555 won on time"]

1. e4 {[%clk 0:03:00.9]} 1... c6 {[%clk 0:03:00.2]} 2. d4 {[%clk 0:02:56.3]}
2... d5 {[%clk 0:03:00.6]} 3. Nd2 {[%clk 0:02:22.8]} 3... g6 {[%clk 0:02:58]} 4.
Ngf3 {[%clk 0:02:19.4]} 4... Bg7 {[%clk 0:02:57.4]} 5. Bd3 {[%clk 0:02:19.1]}
5... dxe4 {[%clk 0:02:56.5]} 6. Nxe4 {[%clk 0:02:18.4]} 6... Nf6 {[%clk
0:02:56.2]} 7. Nxf6+ {[%clk 0:02:17.9]} 7... exf6 {[%clk 0:02:56.4]} 8. O-O
{[%clk 0:02:18.1]} 8... O-O {[%clk 0:02:55.5]} 9. Bf4 {[%clk 0:02:17.9]} 9...
Be6 {[%clk 0:02:55.1]} 10. Re1 {[%clk 0:02:14.9]} 10... Re8 {[%clk 0:02:54.4]}
11. Qd2 {[%clk 0:02:05.6]} 11... g5 {[%clk 0:02:52.8]} 12. Bg3 {[%clk 0:01:32]}
12... Nd7 {[%clk 0:02:52.3]} 13. h4 {[%clk 0:01:31.8]} 13... h6 {[%clk
0:02:51.6]} 14. hxg5 {[%clk 0:01:31.4]} 14... hxg5 {[%clk 0:02:50.9]} 15. c3
{[%clk 0:01:31.2]} 15... Nf8 {[%clk 0:02:50.1]} 16. Bc2 {[%clk 0:01:28.8]} 16...
Qb6 {[%clk 0:02:47.9]} 17. b3 {[%clk 0:01:24.8]} 17... Rad8 {[%clk 0:02:45.3]}
18. Qd3 {[%clk 0:01:23.6]} 18... c5 {[%clk 0:02:38.9]} 19. Re3 {[%clk 0:01:20]}
19... Qc6 {[%clk 0:02:34]} 20. Rae1 {[%clk 0:01:18.6]} 20... c4 {[%clk
0:02:29.5]} 21. bxc4 {[%clk 0:01:17.4]} 21... Bxc4 {[%clk 0:02:29.3]} 22. Qf5
{[%clk 0:01:16.8]} 22... Rxe3 {[%clk 0:02:27.8]} 23. Rxe3 {[%clk 0:01:14.7]}
23... Bxa2 {[%clk 0:02:21.2]} 24. Bh2 {[%clk 0:01:07.6]} 24... Be6 {[%clk
0:02:19.8]} 25. Qd3 {[%clk 0:01:06.4]} 25... a5 {[%clk 0:02:15.6]} 26. Nd2
{[%clk 0:01:06.1]} 26... a4 {[%clk 0:02:13.2]} 27. c4 {[%clk 0:01:05.6]} 27...
b5 {[%clk 0:01:53.3]} 28. cxb5 {[%clk 0:01:05]} 28... Qa8 {[%clk 0:01:53.2]} 29.
b6 {[%clk 0:01:02.6]} 29... f5 {[%clk 0:01:50.4]} 30. Qa3 {[%clk 0:00:58.5]}
30... Bxd4 {[%clk 0:01:39.3]} 31. Rh3 {[%clk 0:00:53.8]} 31... Bxb6 {[%clk
0:01:31.6]} 32. Qg3 {[%clk 0:00:48.6]} 32... g4 {[%clk 0:01:26.8]} 33. Rh5
{[%clk 0:00:38.8]} 33... Rxd2 {[%clk 0:01:12.4]} 34. Qe5 {[%clk 0:00:07.2]}
34... Ng6 {[%clk 0:01:10.4]} 35. Qf6 {[%clk 0:00:06.9]} 35... Bxf2+ {[%clk
0:01:06.2]} 36. Kh1 {[%clk 0:00:06.4]} 36... Bd4 {[%clk 0:01:05.4]} 37. Rh8+
{[%clk 0:00:01.2]} 37... Nxh8 {[%clk 0:01:04.3]} 38. Qg5+ {[%clk 0:00:01.9]}
38... Ng6 {[%clk 0:01:02.3]} 0-1

[Event "Late-Titled-Tuesday-Blitz-August-29-2023"]
[Site "Chess.com"]
[Date "2023.08.29"]
[Round "2"]
[White "DawidCzerw"]
[Black "Akhayan"]
[Result "1-0"]
[WhiteElo "2488"]
[BlackElo "2279"]
[TimeControl "180+1"]
[EndTime "14:17:42 PDT"]
[Termination "DawidCzerw won by resignation"]

1. e4 {[%clk 0:03:00.9]} 1... e5 {[%clk 0:02:59.4]} 2. Nf3 {[%clk 0:03:01.5]}
2... Nc6 {[%clk 0:02:59.7]} 3. Bb5 {[%clk 0:03:02.1]} 3... a6 {[%clk 0:02:59.7]}
4. Ba4 {[%clk 0:03:02.7]} 4... Nf6 {[%clk 0:03:00]} 5. d4 {[%clk 0:03:03]} 5...
exd4 {[%clk 0:02:59.7]} 6. O-O {[%clk 0:03:03.5]} 6... Be7 {[%clk 0:02:57.3]} 7.
e5 {[%clk 0:03:03.6]} 7... Ne4 {[%clk 0:02:57.4]} 8. Re1 {[%clk 0:03:03.4]} 8...
Nc5 {[%clk 0:02:57.4]} 9. Bb3 {[%clk 0:03:00.2]} 9... O-O {[%clk 0:02:56.7]} 10.
Nxd4 {[%clk 0:02:59.8]} 10... Nxd4 {[%clk 0:02:53.7]} 11. Qxd4 {[%clk
0:03:00.7]} 11... d6 {[%clk 0:02:53.8]} 12. exd6 {[%clk 0:02:49.5]} 12... Bxd6
{[%clk 0:02:51.5]} 13. Bf4 {[%clk 0:02:48.2]} 13... Nxb3 {[%clk 0:02:49.5]} 14.
axb3 {[%clk 0:02:46.7]} 14... Bxf4 {[%clk 0:02:48.4]} 15. Qxf4 {[%clk
0:02:46.4]} 15... Be6 {[%clk 0:02:48.5]} 16. Nc3 {[%clk 0:02:43.5]} 16... c6
{[%clk 0:02:41.3]} 17. Ne4 {[%clk 0:02:41.1]} 17... h6 {[%clk 0:02:39.6]} 18.
Nc5 {[%clk 0:02:37.5]} 18... Qb6 {[%clk 0:02:33.8]} 19. Nxe6 {[%clk 0:02:19.4]}
19... fxe6 {[%clk 0:02:32.2]} 20. Qg3 {[%clk 0:02:15.1]} 20... Rf6 {[%clk
0:02:28.7]} 21. Re3 {[%clk 0:02:12.4]} 21... Raf8 {[%clk 0:02:27.7]} 22. Rae1
{[%clk 0:02:11.8]} 22... Rxf2 {[%clk 0:02:26.2]} 23. Qxf2 {[%clk 0:02:10.9]}
23... Rxf2 {[%clk 0:02:26.1]} 24. Kxf2 {[%clk 0:02:11.8]} 24... Qd4 {[%clk
0:02:24.3]} 25. c3 {[%clk 0:02:02.8]} 25... Qd5 {[%clk 0:02:19.1]} 26. b4 {[%clk
0:01:57.1]} 26... Qf5+ {[%clk 0:02:17.9]} 27. Kg1 {[%clk 0:01:56]} 27... Qc2
{[%clk 0:02:10.9]} 28. R3e2 {[%clk 0:01:53.2]} 28... Qb3 {[%clk 0:02:08.5]} 29.
h3 {[%clk 0:01:50]} 29... Kh7 {[%clk 0:02:06.2]} 30. Rf2 {[%clk 0:01:46.7]}
30... Qd5 {[%clk 0:02:00.7]} 31. Re3 {[%clk 0:01:34.5]} 31... e5 {[%clk
0:01:56.3]} 32. Rfe2 {[%clk 0:01:32.2]} 32... Qd1+ {[%clk 0:01:50.9]} 33. Kh2
{[%clk 0:01:32.2]} 33... Qf1 {[%clk 0:01:46.2]} 34. Rxe5 {[%clk 0:01:24.8]}
34... Qf4+ {[%clk 0:01:46.4]} 35. g3 {[%clk 0:01:05.9]} 35... Qf3 {[%clk
0:01:45.2]} 36. h4 {[%clk 0:01:05.7]} 36... b6 {[%clk 0:01:38.6]} 37. Re7 {[%clk
0:00:56.9]} 37... a5 {[%clk 0:01:36.4]} 38. bxa5 {[%clk 0:00:55.6]} 38... bxa5
{[%clk 0:01:37.1]} 39. R7e3 {[%clk 0:00:49.5]} 39... Qf1 {[%clk 0:01:35.8]} 40.
Rd2 {[%clk 0:00:46.5]} 40... Qc1 {[%clk 0:01:25.9]} 41. Ree2 {[%clk 0:00:45.8]}
41... a4 {[%clk 0:01:21.5]} 42. Rd7 {[%clk 0:00:35.8]} 42... a3 {[%clk
0:01:19.4]} 43. bxa3 {[%clk 0:00:32]} 43... Qxc3 {[%clk 0:01:19.4]} 44. a4
{[%clk 0:00:22.1]} 44... Qa1 {[%clk 0:01:13.9]} 45. Ree7 {[%clk 0:00:20.2]}
45... Qa2+ {[%clk 0:01:05.7]} 46. Kh3 {[%clk 0:00:20.2]} 46... Qxa4 {[%clk
0:01:02.8]} 47. Rxg7+ {[%clk 0:00:19.9]} 47... Kh8 {[%clk 0:01:02.6]} 48. Rge7
{[%clk 0:00:19.5]} 48... Qa8 {[%clk 0:00:55]} 49. Rh7+ {[%clk 0:00:19.7]} 49...
Kg8 {[%clk 0:00:55.4]} 50. Rdg7+ {[%clk 0:00:20.6]} 50... Kf8 {[%clk 0:00:55.9]}
51. Rh8+ {[%clk 0:00:21.5]} 51... Kxg7 {[%clk 0:00:56.4]} 52. Rxa8 {[%clk
0:00:22.4]} 1-0

[Event "Late-Titled-Tuesday-Blitz-August-29-2023"]
[Site "Chess.com"]
[Date "2023.08.29"]
[Round "2"]
[White "Zampronha1971"]
[Black "Langusto"]
[Result "0-1"]
[WhiteElo "2277"]
[BlackElo "2487"]
[TimeControl "180+1"]
[EndTime "14:17:42 PDT"]
[Termination "Langusto won by checkmate"]

1. e4 {[%clk 0:03:00.9]} 1... e5 {[%clk 0:02:58.9]} 2. Nf3 {[%clk 0:03:01.3]}
2... Nc6 {[%clk 0:02:58.8]} 3. d4 {[%clk 0:03:02.2]} 3... exd4 {[%clk
0:02:58.6]} 4. Nxd4 {[%clk 0:03:03.1]} 4... Bc5 {[%clk 0:02:58.1]} 5. Be3 {[%clk
0:03:03]} 5... Bb6 {[%clk 0:02:58.3]} 6. Nf5 {[%clk 0:03:01.7]} 6... d5 {[%clk
0:02:51.6]} 7. Bxb6 {[%clk 0:02:56.7]} 7... Bxf5 {[%clk 0:02:40.4]} 8. Bxc7
{[%clk 0:02:52.4]} 8... Qxc7 {[%clk 0:02:41.3]} 9. exf5 {[%clk 0:02:51.8]} 9...
O-O-O {[%clk 0:02:41.9]} 10. Be2 {[%clk 0:02:48.7]} 10... Nf6 {[%clk 0:02:38.4]}
11. O-O {[%clk 0:02:49.1]} 11... g6 {[%clk 0:02:36]} 12. fxg6 {[%clk 0:02:17.9]}
12... hxg6 {[%clk 0:02:36.9]} 13. h3 {[%clk 0:02:18]} 13... Qe5 {[%clk
0:02:25.6]} 14. Nc3 {[%clk 0:02:12.7]} 14... d4 {[%clk 0:02:25]} 15. Nb5 {[%clk
0:02:08.3]} 15... Kb8 {[%clk 0:02:23.2]} 16. Qd2 {[%clk 0:02:02.7]} 16... Ne4
{[%clk 0:02:15.1]} 17. Qd3 {[%clk 0:01:59.9]} 17... f5 {[%clk 0:02:07.9]} 18.
Na3 {[%clk 0:01:47.2]} 18... g5 {[%clk 0:02:04.7]} 19. Qb5 {[%clk 0:01:44.2]}
19... Rd5 {[%clk 0:02:00.9]} 20. Qd3 {[%clk 0:01:37.9]} 20... g4 {[%clk
0:01:58.6]} 21. f4 {[%clk 0:01:33.7]} 21... Qe6 {[%clk 0:01:11.4]} 22. hxg4
{[%clk 0:01:30.8]} 22... fxg4 {[%clk 0:01:07.5]} 23. Bxg4 {[%clk 0:01:23.4]}
23... Qxg4 {[%clk 0:00:25.2]} 24. Qxe4 {[%clk 0:01:23.8]} 24... Rdh5 {[%clk
0:00:18]} 25. Kf2 {[%clk 0:01:09.2]} 25... Rf5 {[%clk 0:00:14.2]} 26. Kg1 {[%clk
0:01:07.7]} 26... Rfh5 {[%clk 0:00:09.8]} 27. Kf2 {[%clk 0:01:07.3]} 27... Qh4+
{[%clk 0:00:09.2]} 28. Kg1 {[%clk 0:01:06.9]} 28... Rg8 {[%clk 0:00:06.9]} 29.
Rae1 {[%clk 0:01:01.3]} 29... Qh2+ {[%clk 0:00:02.9]} 30. Kf2 {[%clk 0:01:01.1]}
30... Qg3+ {[%clk 0:00:03.8]} 31. Kg1 {[%clk 0:01:00.3]} 31... Rgh8 {[%clk
0:00:01.9]} 32. Qe8+ {[%clk 0:00:50.4]} 32... Rxe8 {[%clk 0:00:02.2]} 33. Rxe8+
{[%clk 0:00:51]} 33... Kc7 {[%clk 0:00:02.8]} 34. Re2 {[%clk 0:00:46.2]} 34...
Rh2 {[%clk 0:00:02.6]} 35. Rf3 {[%clk 0:00:47.1]} 35... Qh4 {[%clk 0:00:03]} 36.
g3 {[%clk 0:00:42.4]} 36... Rh1+ {[%clk 0:00:02.6]} 37. Kg2 {[%clk 0:00:42.3]}
37... Qh2# {[%clk 0:00:03.2]} 0-1